fUST/lending_fUST_20250501
["ID","MTS","AMOUNT","RATE_DAILY","PERIOD"]
[359498772,1746069054517,-151.0,0.0004,14]
[359498773,1746069054527,-156.714338,0.0004,14]
[359498774,1746069054537,-151.0,0.0004,12]
[359498775,1746069054546,-151.0,0.0004,14]
[359498776,1746069054555,-151.0,0.0004,14]
[359498777,1746069054564,-289.752766,0.0004,14]
[359498778,1746069054573,-299.129932,0.0004,14]
[359498779,1746069054582,-299.129932,0.0004,14]
[359498780,1746069054591,-299.129932,0.0004,14]
[359498781,1746069054609,-299.129932,0.0004,14]
[359498782,1746069054621,-948.61771,0.0004,14]
[359498783,1746069054631,-948.61771,0.0004,14]
[359498784,1746069054641,-948.61771,0.0004,14]
[359498785,1746069054651,-948.61771,0.0004,14]
[359498786,1746069054661,-1840.856867,0.0004,2]
[359498787,1746069054670,-1840.856867,0.0004,2]
[359498788,1746069054680,-151.0,0.0004,14]
[359498789,1746069054690,-151.0,0.0004,14]
[359498790,1746069054700,-151.0,0.0004,14]
[359498791,1746069054710,-236.539631,0.0004,14]
[359498792,1746069054719,-1840.856867,0.0004,2]
[359498793,1746069054729,-1840.856867,0.0004,2]
[359498794,1746069054739,-151.0,0.0004,14]
[359498795,1746069054749,-151.0,0.0004,14]
[359498796,1746069054758,-158.458063,0.0004,14]
[359498797,1746069054767,-175.1602,0.0004,14]
[359498798,1746069054777,-151.0,0.0004,14]
[359498799,1746069054786,-256.150927,0.0004,14]
[359498800,1746069054795,-151.0,0.0004,14]
[359498801,1746069054805,-151.0,0.0004,14]
[359498802,1746069054814,-151.0,0.0004,14]
[359498803,1746069054824,-151.0,0.0004,14]
[359498804,1746069054833,-151.0,0.0004,14]
[359498805,1746069054843,-151.0,0.0004,14]
[359498806,1746069054852,-151.0,0.0004,14]
[359498807,1746069054861,-166.944992,0.0004,14]
[359498808,1746069054871,-151.0,0.0004,14]
[359498809,1746069054880,-151.0,0.0004,14]
[359498810,1746069054890,-151.0,0.0004,14]
[359498811,1746069054900,-210.454157,0.0004,14]
[359498812,1746069054910,-178.33539792,0.0004,6]
[359498813,1746069054920,-151.0,0.0004,14]
[359498814,1746069054929,-151.0,0.0004,14]
[359498815,1746069054939,-206.801438,0.0004,14]
[359498816,1746069054948,-206.801438,0.0004,14]
[359498817,1746069054958,-206.801438,0.0004,14]
[359498818,1746069054968,-206.801438,0.0004,14]
[359498819,1746069054978,-152.674455,0.0004,14]
[359498820,1746069054988,-154.138128,0.0004,14]
[359498821,1746069054998,-151.0,0.0004,14]
[359498822,1746069055008,-210.347894,0.0004,14]
[359498823,1746069055017,-160.0,0.00040023,2]
[359498824,1746069055027,-175.1210764,0.00040027,30]
[359498825,1746069055036,-356.4323395,0.00040027,30]
[359498826,1746069055046,-196.4353693,0.00040027,30]
[359498827,1746069055056,-1134.1678406,0.00040027,30]
[359498828,1746069055065,-157.4635343,0.00040027,30]
[359498829,1746069055075,-175.1210764,0.00040027,30]
[359498830,1746069055085,-567.4510288,0.00040027,30]
[359498831,1746069055095,-157.4635343,0.00040027,30]
[359498832,1746069055105,-175.1210764,0.00040027,30]
[359498833,1746069055115,-567.4510288,0.00040027,30]
[359498834,1746069055124,-175.1210764,0.00040027,30]
[359498835,1746069055134,-157.4635343,0.00040027,30]
[359498836,1746069055144,-567.4510288,0.00040027,30]
[359498837,1746069055154,-175.1210764,0.00040027,30]
[359498838,1746069055164,-564.682423,0.00040027,30]
[359498839,1746069055174,-157.4635343,0.00040027,30]
[359498840,1746069055183,-157.4635343,0.00040027,30]
[359498841,1746069055193,-175.1210764,0.00040027,30]
[359498842,1746069055202,-175.1210764,0.00040027,30]
[359498843,1746069055212,-157.4635343,0.00040027,30]
[359498844,1746069055222,-1134.1678406,0.00040055,30]
[359498845,1746069055232,-157.4231276,0.00040055,30]
[359498846,1746069055244,-591.12475686,0.00040063,3]
[359498847,1746069055254,-5296.48445783,0.00040072,2]
[359498848,1746069055263,-501.65552877,0.00040073,5]
[359498849,1746069055274,-502.27892226,0.00040073,5]
[359498850,1746069055287,-500.0,0.00040073,5]
[359498851,1746069055296,-500.78456312,0.00040073,5]
[359498852,1746069055306,-501.0413554,0.00040073,5]
[359498853,1746069055395,-557.03537909,0.00040073,5]
[359498854,1746069055404,-502.23278845,0.00040073,5]
[359498855,1746069055421,-502.29208565,0.00040073,5]
[359498856,1746069055430,-501.19233838,0.00040073,5]
[359498857,1746069055439,-501.46577988,0.00040073,5]
[359498858,1746069055449,-221.34791429,0.00040073,5]
[359498859,1746069055458,-508.29021159,0.00040073,5]
[359498860,1746069055467,-500.0,0.00040073,5]
[359498861,1746069055476,-500.0,0.00040073,5]
[359498862,1746069055485,-502.18745758,0.00040073,5]
[359498863,1746069055494,-503.5249525,0.00040073,5]
[359498864,1746069055503,-500.0,0.00040073,5]
[359498865,1746069055513,-500.0,0.00040073,5]
[359498866,1746069055522,-500.0,0.00040073,5]
[359498867,1746069055532,-500.0,0.00040073,5]
[359498868,1746069055541,-500.0,0.00040073,5]
[359498869,1746069055550,-501.88337013,0.00040073,5]
[359498870,1746069055560,-1881.47591277,0.00040073,14]
[359498871,1746069055569,-2955.6237843,0.0004009,3]
[359498872,1746069055579,-160.0,0.0004009,3]
[359498873,1746069055589,-160.0,0.00040099,30]
[359498874,1746069055599,-501.58719795,0.00040099,10]
[359498875,1746069055608,-181716.57110833,0.000401,30]
[359498876,1746069055797,-1591.80000001,0.000401,30]
[359498877,1746069055813,-17425.84343063,0.000401,30]
[359498878,1746069055952,-808.2897732,0.00039918,30]
[359498879,1746069055961,-157.4635343,0.00040027,30]
[359498880,1746069055970,-175.1210764,0.00040027,30]
[359498881,1746069055980,-27163.69896119,0.000401,30]
[359498882,1746069055991,-5075.58570483,0.000401,30]
[359498887,1746069305270,-302.99532493,0.00021245,2]
[359498888,1746069312018,-209.73200653,0.00021245,2]
[359498889,1746069312039,-26.8382508,0.000237,2]
[359498890,1746069315793,-263.42974267,0.000237,2]
[359498891,1746069319771,-207.08093353,0.000237,2]
[359498892,1746069323757,-232.50997298,0.000237,2]
[359498893,1746069327050,-252.30560862,0.000237,2]
[359498894,1746069331466,-17.8354914,0.000237,2]
[359498895,1746069603847,-269.49188558,0.00021245,2]
[359498896,1746069609266,-191.34558224,0.00021245,2]
[359498897,1746069610196,-51.88986364,0.00021245,2]
[359498898,1746069610218,-185.32936812,0.000237,2]
[359498900,1746070027120,-167.701782,0.00027397,2]
[359498901,1746070027142,-167.701782,0.00033165,2]
[359498902,1746070027164,-250.97750782,0.00034084,2]
[359498903,1746070027185,-153.0,0.0003579,2]
[359498904,1746070027205,-830.59821702,0.00036744,3]
[359498905,1746070027232,-149.02235248,0.00036744,3]
[359498906,1746070027253,-380.066931,0.00036994,2]
[359498907,1746070027273,-155.81118443,0.00036994,2]
[359498908,1746070031083,-4.18881557,0.00036994,2]
[359498909,1746070031105,-182.07995741,0.00037032,2]
[359498910,1746070031126,-250.92496012,0.00037034,2]
[359498911,1746070042119,-160.0,0.00037032,2]
[359498912,1746070042230,-51.9016438,0.00037034,2]
[359498913,1746070042251,-162.0861612,0.00037038,2]
[359498914,1746070042271,-453.61709327,0.00037167,3]
[359498915,1746070045093,-746.38290673,0.00037167,3]
[359498916,1746070045114,-400.0,0.00037167,2]
[359498917,1746070045135,-796.91899269,0.00037168,2]
[359498918,1746070045155,-242.0,0.00037168,3]
[359498919,1746070045180,-6368.16238984,0.00037169,2]
[359498921,1746070124882,-170.55591138,0.00024,2]
[359498922,1746070127709,-3.60782533,0.00024,2]
[359498923,1746070131578,-12762.0,0.00025,2]
[359498924,1746070146088,-300.0,0.00024999,2]
[359498925,1746070146108,-2238.0,0.00025,2]
[359498926,1746070146128,-35034.21287541,0.00025,2]
[359498927,1746070146147,-31958.46659417,0.00025,2]
[359498928,1746070152085,-78243.44357383,0.00025,2]
[359498929,1746070152105,-18202.12561315,0.00026,30]
[359498930,1746070152126,-420.0,0.00027082,2]
[359498931,1746070152146,-587.0,0.00029339,2]
[359498932,1746070152166,-515.05970434,0.0003,15]
[359498933,1746070152186,-823.0,0.00031784,2]
[359498934,1746070152207,-1028.92249437,0.00034433,2]
[359498953,1746070232022,-181.05154541,0.00032811,9]
[359498954,1746070232031,-160.0,0.00034667,2]
[359498955,1746070232038,-151.71899929,0.00035,10]
[359498956,1746070232047,-150.0,0.00035069,2]
[359498958,1746070232058,-196.39261,0.00036529,2]
[359498960,1746070232068,-247.0,0.00037168,2]
[359498962,1746070232077,-10436.85874296,0.00037169,2]
[359498964,1746070232087,-166.8008794,0.00037205,120]
[359498966,1746070232096,-411.91263996,0.00037353,2]
[359498967,1746070232106,-3037.6484814,0.00037389,2]
[359498970,1746070232115,-303.87780426,0.00037628,2]
[359498973,1746070232124,-160.0,0.00037969,2]
[359498976,1746070232134,-427.1760395,0.00037969,2]
[359498979,1746070232143,-161.08439203,0.00037985,2]
[359498981,1746070232156,-158.07,0.00037999,2]
[359498983,1746070232166,-151.0,0.00038,14]
[359498984,1746070232175,-155.201556,0.00038,14]
[359498985,1746070232185,-427.1760395,0.00038217,2]
[359498986,1746070232195,-427.1760395,0.00038387,2]
[359498987,1746070232204,-279.2815926,0.00038633,4]
[359498988,1746070232214,-427.1760395,0.00038714,2]
[359498989,1746070232223,-167.701782,0.00038933,2]
[359498990,1746070232232,-1919.60222046,0.0003897,2]
[359498991,1746070232245,-91.79633139,0.0003897,2]
[359498993,1746070232254,-427.1760395,0.00039177,2]
[359498994,1746070232264,-350.1144489,0.00039205,30]
[359498995,1746070232273,-173.7163335,0.00039205,30]
[359498996,1746070232283,-314.830018,0.00039233,30]
[359498997,1746070232292,-157.4635343,0.00039233,30]
[359498998,1746070232301,-157.4635343,0.00039233,30]
[359498999,1746070232311,-175.1210764,0.00039233,30]
[359499000,1746070232320,-157.4635343,0.00039233,30]
[359499001,1746070232329,-175.1210764,0.00039233,30]
[359499002,1746070232339,-175.1210764,0.00039233,30]
[359499003,1746070232348,-175.1210764,0.00039233,30]
[359499004,1746070232358,-175.1210764,0.00039233,30]
[359499005,1746070232367,-427.1760395,0.00039374,2]
[359499006,1746070232378,-421.4777418,0.0003947,2]
[359499007,1746070232387,-427.1760395,0.00039638,2]
[359499008,1746070232397,-500.0,0.00039664,60]
[359499009,1746070232406,-403.0,0.00039725,2]
[359499010,1746070232415,-548.73,0.00039725,2]
[359499011,1746070232425,-151.0,0.0003987,14]
[359499012,1746070232435,-427.1760401,0.00039871,2]
[359499013,1746070232444,-1941.46850746,0.0003989,2]
[359499014,1746070232454,-1941.46850742,0.00039893,2]
[359499015,1746070232463,-1941.46850742,0.00039895,2]
[359499016,1746070232472,-1941.46850742,0.00039898,2]
[359499017,1746070232482,-500.0,0.00039898,31]
[359499018,1746070232491,-500.0,0.00039898,31]
[359499019,1746070232500,-500.0,0.00039898,31]
[359499020,1746070232510,-500.0,0.00039898,31]
[359499021,1746070232519,-500.0,0.00039898,31]
[359499022,1746070232529,-500.0,0.00039898,31]
[359499023,1746070232539,-500.0,0.00039898,31]
[359499024,1746070232548,-500.0,0.00039898,31]
[359499025,1746070232558,-500.0,0.00039898,31]
[359499026,1746070232567,-500.0,0.00039898,31]
[359499027,1746070232576,-500.0,0.00039898,31]
[359499028,1746070232587,-500.0,0.00039898,31]
[359499029,1746070232601,-500.0,0.00039898,31]
[359499030,1746070232611,-523.28491725,0.00039898,31]
[359499031,1746070232620,-192.52454058,0.00039898,31]
[359499032,1746070232630,-500.0,0.00039898,31]
[359499033,1746070232640,-500.0,0.00039898,31]
[359499034,1746070232649,-500.0,0.00039898,31]
[359499035,1746070232658,-500.0,0.00039898,31]
[359499036,1746070232669,-500.0,0.00039898,31]
[359499037,1746070232680,-500.0,0.00039898,31]
[359499038,1746070232689,-500.0,0.00039898,31]
[359499039,1746070232699,-500.0,0.00039898,31]
[359499040,1746070232708,-500.0,0.00039898,31]
[359499041,1746070232717,-500.0,0.00039898,31]
[359499042,1746070232726,-500.0,0.00039898,31]
[359499043,1746070232736,-500.0,0.00039898,31]
[359499044,1746070232745,-500.0,0.00039898,31]
[359499045,1746070232755,-500.0,0.00039898,31]
[359499046,1746070232764,-500.0,0.00039898,31]
[359499047,1746070232774,-500.0,0.00039898,31]
[359499048,1746070232783,-500.0,0.00039898,31]
[359499049,1746070232793,-500.0,0.00039898,31]
[359499050,1746070232803,-500.0,0.00039898,31]
[359499051,1746070232813,-500.0,0.00039898,31]
[359499052,1746070232823,-500.0,0.00039898,31]
[359499053,1746070232833,-500.0,0.00039898,31]
[359499054,1746070232842,-500.0,0.00039898,31]
[359499055,1746070232852,-256.03759701,0.00039898,31]
[359499056,1746070232861,-500.0,0.00039898,31]
[359499057,1746070232870,-500.0,0.00039898,31]
[359499058,1746070232880,-1148.66847347,0.00039899,2]
[359499059,1746070232889,-667.26923957,0.000399,2]
[359499060,1746070232899,-361.7792701,0.00039973,30]
[359499061,1746070232909,-506.76132985,0.00039973,5]
[359499062,1746070232918,-500.0,0.00039973,5]
[359499063,1746070232927,-504.86985787,0.00039973,5]
[359499064,1746070232937,-500.0,0.00039973,5]
[359499065,1746070232946,-500.0,0.00039973,5]
[359499066,1746070232955,-500.0,0.00039973,5]
[359499067,1746070232964,-500.0,0.00039973,5]
[359499068,1746070232974,-500.0,0.00039973,5]
[359499069,1746070232983,-448.80131538,0.00039973,5]
[359499070,1746070232992,-500.0,0.00039973,5]
[359499071,1746070233002,-500.0,0.00039973,4]
[359499072,1746070233011,-502.37532784,0.00039973,5]
[359499073,1746070233021,-500.0,0.00039973,5]
[359499074,1746070233030,-500.0,0.00039973,5]
[359499075,1746070233040,-501.17175627,0.00039973,5]
[359499076,1746070233049,-501.29797609,0.00039973,5]
[359499077,1746070233061,-501.47968579,0.00039973,5]
[359499078,1746070233070,-423.14149842,0.00039973,5]
[359499079,1746070233080,-300.0,0.00039973,5]
[359499080,1746070233090,-500.0,0.00039973,5]
[359499081,1746070233100,-500.0,0.00039973,5]
[359499082,1746070233109,-187.33408745,0.00039973,5]
[359499083,1746070233119,-500.0,0.00039973,2]
[359499084,1746070233128,-500.0,0.00039973,5]
[359499085,1746070233138,-500.0,0.00039973,5]
[359499086,1746070233148,-502.12035174,0.00039973,5]
[359499087,1746070233157,-500.0,0.00039973,5]
[359499088,1746070233167,-500.0,0.00039973,5]
[359499089,1746070233176,-505.80311082,0.00039973,5]
[359499090,1746070233187,-500.0,0.00039989,31]
[359499091,1746070233197,-167.65062763,0.00039989,7]
[359499092,1746070233207,-443.23685844,0.00039989,31]
[359499093,1746070233217,-188.71474399,0.00039989,31]
[359499094,1746070233226,-183.30615595,0.00039989,7]
[359499095,1746070233236,-160.0,0.0003999,3]
[359499096,1746070233245,-35411.69549206,0.0003999,3]
[359499111,1746070238007,-1941.46850742,0.000399,2]
[359499113,1746070238017,-203873.69014694,0.0003999,3]
[359499115,1746070238027,-11984.3120888,0.0003999,3]
[359499116,1746070238036,-160.75584855,0.00039999,30]
[359499117,1746070238046,-1000.0,0.00039999,15]
[359499118,1746070238055,-1000.0,0.00039999,15]
[359499119,1746070238064,-1000.0,0.00039999,15]
[359499120,1746070238073,-1000.0,0.00039999,15]
[359499122,1746070238083,-1000.0,0.00039999,15]
[359499125,1746070238092,-1000.0,0.00039999,15]
[359499128,1746070238101,-1000.0,0.00039999,15]
[359499131,1746070238111,-1000.0,0.00039999,15]
[359499134,1746070238120,-1000.0,0.00039999,15]
[359499136,1746070238129,-1000.0,0.00039999,15]
[359499138,1746070238139,-1000.0,0.00039999,15]
[359499141,1746070238148,-1000.0,0.00039999,15]
[359499144,1746070238157,-1000.0,0.00039999,15]
[359499147,1746070238166,-1000.0,0.00039999,15]
[359499150,1746070238176,-1000.0,0.00039999,15]
[359499152,1746070238186,-668.75946216,0.00039999,15]
[359499155,1746070238195,-1352.55261337,0.0004,2]
[359499157,1746070238204,-236.07749999,0.0004,3]
[359499159,1746070238215,-151.0,0.0004,14]
[359499161,1746070238224,-151.0,0.0004,14]
[359499163,1746070238234,-151.0,0.0004,14]
[359499165,1746070238243,-400.0,0.0004,12]
[359499167,1746070238253,-400.0,0.0004,12]
[359499169,1746070238262,-205.07470772,0.0004,12]
[359499171,1746070238271,-507.99576783,0.0004,12]
[359499172,1746070238280,-400.0,0.0004,12]
[359499174,1746070238290,-400.0,0.0004,12]
[359499175,1746070238299,-400.0,0.0004,12]
[359499176,1746070238308,-297.78565677,0.0004,12]
[359499177,1746070238319,-400.0,0.0004,12]
[359499178,1746070238328,-400.0,0.0004,12]
[359499179,1746070238338,-204.15235945,0.0004,12]
[359499180,1746070238347,-400.0,0.0004,12]
[359499181,1746070238356,-400.0,0.0004,12]
[359499182,1746070238365,-400.0,0.0004,12]
[359499183,1746070238375,-400.0,0.0004,12]
[359499184,1746070238384,-500.0,0.0004,12]
[359499185,1746070238393,-400.0,0.0004,12]
[359499186,1746070238403,-400.0,0.0004,12]
[359499187,1746070238412,-200.0,0.0004,12]
[359499188,1746070238421,-400.0,0.0004,12]
[359499189,1746070238431,-303.14984915,0.0004,12]
[359499190,1746070238440,-2243.0,0.0004,2]
[359499191,1746070238451,-400.0,0.0004,12]
[359499192,1746070238460,-400.0,0.0004,12]
[359499193,1746070238470,-400.0,0.0004,12]
[359499194,1746070238479,-400.0,0.0004,12]
[359499195,1746070238488,-400.0,0.0004,12]
[359499196,1746070238497,-400.0,0.0004,12]
[359499197,1746070238507,-400.0,0.0004,12]
[359499198,1746070238516,-400.0,0.0004,12]
[359499199,1746070238525,-400.0,0.0004,12]
[359499200,1746070238535,-400.0,0.0004,12]
[359499201,1746070238544,-400.0,0.0004,12]
[359499202,1746070238553,-494.37671691,0.0004,12]
[359499203,1746070238564,-209.3291054,0.0004,12]
[359499204,1746070238573,-409.98277887,0.0004,12]
[359499205,1746070238583,-400.0,0.0004,12]
[359499206,1746070238595,-400.0,0.0004,12]
[359499207,1746070238605,-400.0,0.0004,12]
[359499208,1746070238615,-331.1500122,0.0004,12]
[359499209,1746070238625,-166.208566,0.0004,14]
[359499210,1746070238634,-400.0,0.0004,12]
[359499211,1746070238644,-400.0,0.0004,12]
[359499212,1746070238653,-400.0,0.0004,12]
[359499213,1746070238663,-400.0,0.0004,12]
[359499214,1746070238675,-400.0,0.0004,12]
[359499215,1746070238686,-522.88812851,0.0004,12]
[359499216,1746070238696,-400.0,0.0004,12]
[359499217,1746070238706,-400.0,0.0004,12]
[359499218,1746070238715,-400.0,0.0004,12]
[359499219,1746070238724,-400.0,0.0004,12]
[359499220,1746070238733,-400.0,0.0004,12]
[359499221,1746070238742,-400.0,0.0004,12]
[359499222,1746070238751,-400.0,0.0004,12]
[359499223,1746070238760,-408.71632293,0.0004,12]
[359499224,1746070238770,-410.15599409,0.0004,12]
[359499225,1746070238779,-400.0,0.0004,12]
[359499226,1746070238790,-400.0,0.0004,12]
[359499227,1746070238799,-400.0,0.0004,12]
[359499228,1746070238808,-400.0,0.0004,12]
[359499229,1746070238818,-419.92891347,0.0004,12]
[359499230,1746070238828,-525.34931195,0.0004,12]
[359499231,1746070238837,-518.26811235,0.0004,12]
[359499232,1746070238846,-223.97278716,0.0004,12]
[359499233,1746070238856,-514.77345352,0.0004,12]
[359499234,1746070238864,-400.0,0.0004,12]
[359499235,1746070238873,-400.0,0.0004,12]
[359499236,1746070238883,-400.0,0.0004,12]
[359499237,1746070238892,-400.0,0.0004,12]
[359499238,1746070238901,-473.23716426,0.0004,12]
[359499239,1746070238911,-510.05265774,0.0004,12]
[359499240,1746070238921,-400.0,0.0004,12]
[359499241,1746070238930,-400.0,0.0004,12]
[359499242,1746070238939,-499.55,0.0004,12]
[359499243,1746070238948,-400.0,0.0004,12]
[359499244,1746070238958,-499.55,0.0004,12]
[359499245,1746070238967,-316.59619132,0.0004,12]
[359499246,1746070238977,-499.55,0.0004,12]
[359499247,1746070238986,-499.55,0.0004,12]
[359499248,1746070238996,-499.55,0.0004,12]
[359499249,1746070239006,-499.55,0.0004,12]
[359499250,1746070239015,-499.55,0.0004,12]
[359499251,1746070239025,-499.55,0.0004,12]
[359499252,1746070239034,-499.55,0.0004,12]
[359499253,1746070239044,-499.55,0.0004,12]
[359499254,1746070239053,-499.55,0.0004,12]
[359499255,1746070239062,-499.55,0.0004,12]
[359499256,1746070239071,-499.55,0.0004,12]
[359499257,1746070239080,-499.55,0.0004,12]
[359499258,1746070239090,-499.55,0.0004,12]
[359499259,1746070239099,-499.55,0.0004,12]
[359499260,1746070239108,-499.55,0.0004,12]
[359499261,1746070239118,-499.55,0.0004,12]
[359499262,1746070239128,-499.55,0.0004,12]
[359499263,1746070239137,-499.55,0.0004,12]
[359499264,1746070239147,-499.55,0.0004,12]
[359499265,1746070239156,-499.55,0.0004,12]
[359499266,1746070239165,-499.55,0.0004,12]
[359499267,1746070239175,-499.75522244,0.0004,12]
[359499268,1746070239185,-400.0,0.0004,12]
[359499269,1746070239195,-400.0,0.0004,12]
[359499270,1746070239204,-400.0,0.0004,12]
[359499271,1746070239213,-244.21471632,0.0004,12]
[359499272,1746070239222,-400.0,0.0004,12]
[359499273,1746070239232,-400.0,0.0004,12]
[359499274,1746070239242,-400.0,0.0004,12]
[359499275,1746070239252,-400.0,0.0004,12]
[359499276,1746070239261,-400.0,0.0004,12]
[359499277,1746070239364,-400.0,0.0004,12]
[359499278,1746070239376,-410.02382031,0.0004,12]
[359499279,1746070239386,-400.0,0.0004,12]
[359499280,1746070239395,-400.0,0.0004,12]
[359499281,1746070239404,-400.0,0.0004,12]
[359499282,1746070239414,-400.0,0.0004,12]
[359499283,1746070239423,-400.0,0.0004,12]
[359499284,1746070239433,-306.07050222,0.0004,12]
[359499285,1746070239442,-400.0,0.0004,12]
[359499286,1746070239451,-400.0,0.0004,12]
[359499287,1746070239461,-400.0,0.0004,12]
[359499288,1746070239470,-400.0,0.0004,12]
[359499289,1746070239479,-400.0,0.0004,12]
[359499290,1746070239488,-400.0,0.0004,12]
[359499291,1746070239499,-520.54139249,0.0004,12]
[359499292,1746070239508,-400.0,0.0004,12]
[359499293,1746070239517,-400.0,0.0004,12]
[359499294,1746070239527,-400.0,0.0004,12]
[359499295,1746070239536,-400.0,0.0004,12]
[359499296,1746070239545,-400.0,0.0004,12]
[359499297,1746070239554,-400.0,0.0004,12]
[359499298,1746070239564,-400.0,0.0004,12]
[359499299,1746070239574,-400.0,0.0004,12]
[359499300,1746070239583,-400.0,0.0004,12]
[359499301,1746070239596,-400.0,0.0004,12]
[359499302,1746070239606,-400.0,0.0004,12]
[359499303,1746070239615,-400.0,0.0004,12]
[359499304,1746070239625,-367.5907332,0.0004,12]
[359499305,1746070239636,-400.0,0.0004,12]
[359499306,1746070239645,-400.0,0.0004,12]
[359499307,1746070239655,-400.0,0.0004,12]
[359499308,1746070239664,-400.0,0.0004,12]
[359499309,1746070239676,-400.0,0.0004,12]
[359499311,1746070239686,-156.142489,0.0004,14]
[359499312,1746070239695,-400.0,0.0004,12]
[359499313,1746070239704,-156.142489,0.0004,14]
[359499314,1746070239713,-400.0,0.0004,12]
[359499315,1746070239723,-156.142489,0.0004,14]
[359499316,1746070239731,-400.0,0.0004,12]
[359499317,1746070239741,-400.0,0.0004,12]
[359499318,1746070239750,-400.0,0.0004,12]
[359499319,1746070239759,-400.0,0.0004,12]
[359499320,1746070239769,-400.0,0.0004,12]
[359499321,1746070239778,-400.0,0.0004,12]
[359499322,1746070239787,-400.0,0.0004,12]
[359499323,1746070239797,-400.0,0.0004,12]
[359499324,1746070239806,-400.0,0.0004,12]
[359499325,1746070239817,-207.43827549,0.0004,12]
[359499326,1746070239827,-416.73178202,0.0004,12]
[359499327,1746070239836,-156.142489,0.0004,14]
[359499328,1746070239847,-156.142489,0.0004,14]
[359499329,1746070239856,-156.142489,0.0004,14]
[359499330,1746070239866,-400.0,0.0004,12]
[359499331,1746070239875,-400.0,0.0004,12]
[359499332,1746070239885,-400.0,0.0004,12]
[359499333,1746070239894,-400.0,0.0004,12]
[359499334,1746070239904,-400.0,0.0004,12]
[359499335,1746070239913,-400.0,0.0004,12]
[359499336,1746070239922,-400.0,0.0004,12]
[359499337,1746070239932,-400.0,0.0004,12]
[359499338,1746070239942,-400.0,0.0004,12]
[359499339,1746070239951,-415.51182689,0.0004,12]
[359499340,1746070239961,-400.0,0.0004,12]
[359499341,1746070239971,-400.0,0.0004,12]
[359499342,1746070239981,-216.24606436,0.0004,12]
[359499343,1746070239991,-406.09787749,0.0004,12]
[359499344,1746070240001,-151.0,0.0004,14]
[359499345,1746070240011,-202.097647,0.0004,14]
[359499346,1746070240022,-500.0,0.0004,12]
[359499347,1746070240031,-507.17935352,0.0004,12]
[359499348,1746070240042,-400.0,0.0004,12]
[359499349,1746070240052,-400.0,0.0004,12]
[359499350,1746070240064,-400.0,0.0004,12]
[359499351,1746070240073,-400.0,0.0004,12]
[359499353,1746070240083,-400.0,0.0004,12]
[359499354,1746070240093,-400.0,0.0004,12]
[359499355,1746070240103,-400.0,0.0004,12]
[359499356,1746070240112,-400.0,0.0004,12]
[359499357,1746070240121,-413.39038507,0.0004,12]
[359499358,1746070240130,-400.0,0.0004,12]
[359499359,1746070240139,-400.0,0.0004,12]
[359499360,1746070240149,-400.0,0.0004,12]